bitfinex-derivatives/quotes_BTCF0:USTF0_20250814
["timestamp","ask_amount","ask_price","bid_price","bid_amount"]
[1755186600024,0.65661495,118150.0,118140.0,0.98016959]
[1755186600414,0.31382888,118150.0,118140.0,1.34096959]
[1755186600622,0.22043495,118150.0,118140.0,1.34096959]
[1755186600817,0.22043495,118150.0,118140.0,0.98016959]
[1755186601123,0.47131495,118150.0,118140.0,0.98016959]
[1755186601322,0.51350495,118150.0,118140.0,1.34096959]
[1755186601824,0.57362356,118150.0,118140.0,0.98016959]
[1755186602023,0.68192356,118150.0,118140.0,1.34096959]
[1755186602220,0.72937356,118150.0,118140.0,0.47872]
[1755186602420,0.72937356,118150.0,118140.0,0.98016959]
[1755186602620,0.66925495,118150.0,118140.0,0.98016959]
[1755186602816,0.80975495,118150.0,118140.0,0.98016959]
[1755186603729,0.78023356,118150.0,118140.0,1.48767359]
[1755186604030,0.80206344,118150.0,118140.0,1.48767359]
[1755186604425,0.89170344,118150.0,118140.0,0.986224]
[1755186604727,0.89170344,118150.0,118140.0,1.48767359]
[1755186605325,0.38276483,118150.0,118140.0,1.48767359]
[1755186605918,0.69376344,118150.0,118140.0,1.48767359]
[1755186607126,0.44288344,118150.0,118140.0,1.48767359]
[1755186608523,0.89170344,118150.0,118140.0,0.986224]
[1755186608722,0.07054,118140.0,118130.0,0.39391]
[1755186608925,1.12029988,118140.0,118130.0,2.26526359]
[1755186609318,0.75949988,118140.0,118130.0,2.26526359]
[1755186609626,0.83440802,118140.0,118130.0,2.26526359]
[1755186610020,0.83640802,118140.0,118130.0,2.26726359]
[1755186610532,1.19720802,118140.0,118130.0,2.26726359]
[1755186610721,2.62196484,118140.0,118130.0,0.002]
[1755186610921,2.66181761,118140.0,118130.0,0.002]
[1755186611117,2.68690947,118140.0,118130.0,0.002]
[1755186611522,2.77155838,118140.0,118130.0,0.002]
[1755186611733,2.77255838,118140.0,118130.0,0.004]
[1755186612426,2.27030879,118140.0,118130.0,0.004]
[1755186612729,2.08565988,118140.0,118130.0,0.47672]
[1755186612931,2.08565988,118140.0,118130.0,1.18251215]
[1755186613521,0.74612988,118140.0,118130.0,0.98769215]
[1755186613718,0.54414309,118150.0,118140.0,0.47272]
[1755186614025,0.58775368,118150.0,118140.0,1.8843043]
[1755186614226,0.58775368,118150.0,118140.0,1.68601615]
[1755186615020,0.58775368,118150.0,118140.0,1.68801615]
[1755186615021,0.63718368,118150.0,118140.0,1.68801615]
[1755186615419,0.27638368,118150.0,118140.0,1.68801615]
[1755186615719,1.20652368,118150.0,118140.0,0.40609488]
[1755186615921,0.61777,118140.0,118130.0,0.002]
[1755186616117,1.26372912,118140.0,118130.0,0.70579215]
[1755186616321,1.26372912,118140.0,118130.0,0.99344215]
[1755186616517,1.26372912,118140.0,118130.0,1.68601615]
[1755186616725,0.81979912,118140.0,118130.0,1.68601615]
[1755186616918,1.11627912,118140.0,118130.0,1.61652615]
[1755186617121,0.85294,118140.0,118120.0,0.28773]
[1755186617320,0.85294,118140.0,118130.0,0.04652]
[1755186617321,0.75294,118140.0,118130.0,0.04652]
[1755186617522,0.39214,118140.0,118130.0,0.04652]
[1755186617724,0.25354,118140.0,118130.0,0.04852]
[1755186617917,0.25454,118140.0,118130.0,0.05052]
[1755186618329,0.25454,118140.0,118130.0,0.92872215]
[1755186618726,0.25454,118140.0,118130.0,0.99821215]
[1755186619030,1.19385962,118140.0,118130.0,1.54231215]
[1755186619227,1.19385962,118140.0,118130.0,0.40623]
[1755186619428,1.19385962,118140.0,118130.0,0.04752]
[1755186619634,1.55465962,118140.0,118130.0,0.04752]
[1755186619834,0.68933962,118140.0,118130.0,0.04752]
[1755186620036,1.53903262,118140.0,118130.0,0.04752]
[1755186620530,1.17823262,118140.0,118130.0,0.04752]
[1755186620735,1.17823262,118140.0,118130.0,1.07402215]
[1755186620940,1.17823262,118140.0,118130.0,0.47372]
[1755186621637,1.17815262,118140.0,118130.0,1.54031215]
[1755186622533,1.53895262,118140.0,118130.0,0.04752]
[1755186622948,1.47978,118140.0,118130.0,0.04752]
[1755186623247,2.37022106,118140.0,118130.0,0.001]
[1755186623435,2.47022106,118140.0,118130.0,0.001]
[1755186623634,1.76442891,118140.0,118130.0,0.001]
[1755186624141,1.76362891,118140.0,118130.0,0.04669]
[1755186624631,1.66590329,118140.0,118130.0,0.04669]
[1755186625235,1.66510329,118140.0,118130.0,0.04669]
[1755186625831,1.68751708,118140.0,118130.0,0.04669]
[1755186626031,1.68751708,118140.0,118130.0,0.12116]
[1755186626236,1.68751708,118140.0,118130.0,0.001]
[1755186626631,1.68751708,118140.0,118130.0,0.04669]
[1755186627631,1.83664112,118140.0,118130.0,0.04669]
[1755186627839,1.97724112,118140.0,118130.0,0.04669]
[1755186628031,1.97724112,118140.0,118130.0,0.21253]
[1755186628032,1.72122761,118140.0,118130.0,0.21253]
[1755186628227,2.08202761,118140.0,118130.0,0.21253]
[1755186628433,2.08202761,118140.0,118130.0,0.04669]
[1755186628434,1.93290357,118140.0,118130.0,0.04669]
[1755186629832,1.82811708,118140.0,118130.0,0.04669]
[1755186630636,1.90295608,118140.0,118130.0,0.04669]
[1755186630832,1.57526717,118140.0,118130.0,1.18517215]
[1755186631037,1.21446717,118140.0,118130.0,0.47938]
[1755186631341,1.21446717,118140.0,118130.0,0.04669]
[1755186631545,1.57526717,118140.0,118130.0,0.04669]
[1755186631740,1.57526717,118140.0,118130.0,0.47938]
[1755186633341,1.21446717,118140.0,118130.0,0.47938]
[1755186633842,1.13962817,118140.0,118130.0,0.84018]
[1755186634139,1.13962817,118140.0,118130.0,2.05427615]
[1755186634140,0.13441379,118140.0,118130.0,2.05427615]
[1755186634338,0.19435621,118140.0,118130.0,2.05427615]
[1755186636636,0.20934181,118140.0,118130.0,2.05427615]
[1755186637240,0.20934181,118140.0,118130.0,2.05347615]
[1755186638141,0.13441379,118140.0,118130.0,1.347684]
[1755186638449,0.13441379,118140.0,118130.0,2.05347615]
[1755186640247,0.13441379,118140.0,118130.0,2.91555615]
[1755186640541,0.10843495,118150.0,118140.0,0.38687058]
[1755186640749,0.13489924,118150.0,118140.0,1.96096673]
[1755186641136,1.01120404,118160.0,118150.0,0.35822]
[1755186641137,0.25402328,118160.0,118150.0,0.35822]
[1755186641342,0.36402328,118160.0,118150.0,2.79435615]
[1755186641543,0.21489924,118160.0,118150.0,2.79435615]
[1755186642048,0.21489924,118160.0,118150.0,2.79335615]
[1755186642547,0.21489924,118160.0,118150.0,2.91251615]
[1755186642844,0.35549924,118160.0,118150.0,2.91251615]
[1755186643345,0.35749924,118160.0,118150.0,2.05047615]
[1755186643542,0.49490924,118160.0,118150.0,2.05247615]
[1755186643742,0.35849924,118160.0,118150.0,2.05247615]
[1755186644537,0.35749924,118160.0,118150.0,2.05047615]
[1755186644748,0.35949924,118160.0,118150.0,2.05447615]
[1755186644955,0.46841986,118160.0,118150.0,2.05447615]
[1755186645342,0.46641986,118160.0,118150.0,2.05447615]
[1755186645542,0.46741986,118160.0,118150.0,2.05547615]
[1755186645845,0.46741986,118160.0,118150.0,1.349684]
[1755186646041,0.36252062,118160.0,118150.0,2.05547615]
[1755186646242,0.36252062,118160.0,118150.0,1.349684]
[1755186646545,0.36252062,118160.0,118150.0,0.76624605]
[1755186646546,1.74909292,118160.0,118150.0,0.76624605]
[1755186646750,1.74909292,118160.0,118140.0,0.26685]
[1755186646751,0.61172,118150.0,118140.0,0.26685]
[1755186646942,0.33570293,118150.0,118140.0,1.6871982]
[1755186647137,0.12,118150.0,118140.0,1.6871982]
[1755186647351,0.21706292,118160.0,118140.0,2.39299035]
[1755186647647,0.61970396,118190.0,118180.0,0.19238]
[1755186647648,0.79890396,118190.0,118180.0,0.19238]
[1755186647851,0.37810396,118190.0,118180.0,2.07379053]
[1755186648050,0.22897992,118190.0,118180.0,2.07379053]
[1755186648254,0.22897992,118190.0,118180.0,2.07179053]
[1755186648450,0.30408238,118190.0,118180.0,2.43339053]
[1755186648640,0.30408238,118190.0,118180.0,2.47908053]
[1755186648845,0.30408238,118190.0,118180.0,2.47728053]
[1755186649250,0.54980992,118190.0,118180.0,1.41064838]
[1755186649453,0.94261992,118190.0,118180.0,2.11644053]
[1755186649749,1.01598992,118190.0,118180.0,2.11644053]
[1755186650445,1.16511396,118190.0,118180.0,2.11644053]
[1755186650642,1.20834089,118190.0,118180.0,2.11644053]
[1755186651350,1.05921685,118190.0,118180.0,2.11644053]
[1755186651752,1.02720685,118190.0,118180.0,2.11644053]
[1755186651947,0.97773685,118190.0,118180.0,2.11644053]
[1755186652346,0.99544898,118190.0,118180.0,2.11644053]
[1755186652550,1.04491898,118190.0,118180.0,2.11644053]
[1755186653455,1.11528898,118190.0,118180.0,1.25472053]
[1755186653648,1.11528898,118190.0,118180.0,1.41036838]
[1755186653853,1.11528898,118190.0,118180.0,2.11616053]
[1755186654054,1.11528898,118190.0,118180.0,0.48399715]
[1755186654352,0.04614,118180.0,118170.0,1.61718215]
[1755186654542,0.17385213,118180.0,118170.0,2.29928729]
[1755186655146,0.17385213,118180.0,118170.0,1.93848729]
[1755186655348,0.12771213,118180.0,118170.0,2.29928729]
[1755186655858,0.12971213,118180.0,118170.0,2.30328729]
[1755186656252,0.12971213,118180.0,118170.0,2.36800729]
[1755186656654,0.12971213,118180.0,118170.0,2.29939496]
[1755186656849,0.20480009,118180.0,118170.0,2.29939496]
[1755186657154,0.37082978,118190.0,118180.0,0.11471]
[1755186657457,0.48082978,118190.0,118180.0,1.18130215]
[1755186657654,0.48082978,118190.0,118180.0,1.50260729]
[1755186657857,0.43468978,118190.0,118180.0,1.50260729]
[1755186658250,0.32957685,118190.0,118180.0,1.50260729]
[1755186658550,0.48382978,118190.0,118180.0,1.50560729]
[1755186660362,0.43768978,118190.0,118180.0,1.50560729]
[1755186660661,0.26526404,118220.0,118180.0,1.94540829]
[1755186660856,0.26526404,118220.0,118210.0,1.06659215]
[1755186661059,0.11614,118220.0,118210.0,1.90786163]
[1755186661251,0.55322,118220.0,118210.0,1.90786163]
[1755186661450,0.70345016,118220.0,118210.0,1.20206948]
[1755186661656,0.48322,118210.0,118200.0,1.22192]
[1755186661862,0.77077771,118210.0,118200.0,0.3608]
[1755186662160,0.77077771,118210.0,118200.0,1.2218]
[1755186662456,0.96310554,118210.0,118200.0,1.2218]
[1755186662662,0.71776554,118210.0,118200.0,1.92759215]
[1755186662860,0.52602554,118210.0,118200.0,1.92759215]
[1755186663160,0.37579538,118210.0,118200.0,1.92759215]
[1755186663464,0.32965538,118210.0,118200.0,1.92759215]
[1755186663659,0.32965538,118210.0,118200.0,2.6341843]
[1755186663854,0.32965538,118210.0,118200.0,1.2218]
[1755186664050,0.32965538,118210.0,118200.0,1.92759215]
[1755186664849,0.33065538,118210.0,118200.0,1.93159215]
[1755186665048,0.33165538,118210.0,118200.0,1.93359215]
[1755186665360,0.33165538,118210.0,118200.0,1.93459215]
[1755186666263,0.40676529,118210.0,118200.0,1.93459215]
[1755186666450,0.45290529,118210.0,118200.0,1.07359215]
[1755186666649,0.45290529,118210.0,118200.0,1.93431215]
[1755186666865,0.40676529,118210.0,118200.0,1.93431215]
[1755186667465,0.37779538,118210.0,118200.0,1.93431215]
[1755186667665,0.37779538,118210.0,118200.0,1.91446346]
[1755186669565,0.37779538,118210.0,118200.0,1.91430346]
[1755186669765,0.37352298,118210.0,118200.0,1.91430346]
[1755186670862,0.37352298,118210.0,118200.0,1.79997471]
[1755186671063,0.37352298,118210.0,118200.0,1.79989471]
[1755186672368,0.66462298,118210.0,118200.0,1.79989471]
[1755186673069,0.81060298,118210.0,118200.0,1.09390256]
[1755186673670,0.81060298,118210.0,118200.0,1.79969471]
[1755186673969,0.82744696,118210.0,118200.0,1.79969471]
[1755186674372,0.34422696,118210.0,118200.0,1.79969471]
[1755186674869,0.39036696,118210.0,118200.0,1.79969471]
[1755186675364,0.58210696,118210.0,118200.0,0.93941471]
[1755186675569,0.82744696,118210.0,118200.0,1.79953471]
[1755186676158,0.39036696,118210.0,118200.0,1.79953471]
[1755186676468,0.39036696,118210.0,118200.0,1.81855743]
[1755186677370,0.34422696,118210.0,118200.0,1.11276528]
[1755186677572,0.34422696,118210.0,118200.0,1.81855743]
[1755186677573,0.39036696,118210.0,118200.0,1.81855743]
[1755186678166,0.34422696,118210.0,118200.0,2.52434958]
[1755186679570,0.39036696,118210.0,118200.0,1.81855743]
[1755186679768,0.82744696,118210.0,118200.0,1.81835743]
[1755186680771,0.39036696,118210.0,118200.0,1.81835743]
[1755186682275,0.34422696,118210.0,118200.0,1.81835743]
[1755186682666,0.39036696,118210.0,118200.0,1.81835743]
[1755186683771,0.17231121,118210.0,118200.0,2.52414958]
[1755186683971,0.06,118210.0,118200.0,2.52414958]
[1755186684478,0.12641811,118210.0,118200.0,1.11256528]
[1755186684678,0.06,118210.0,118200.0,1.11256528]
[1755186684878,0.16955604,118210.0,118200.0,1.11256528]
[1755186685177,0.06,118210.0,118200.0,1.11256528]
[1755186685578,0.06,118210.0,118200.0,1.81835743]
[1755186685878,0.06,118210.0,118200.0,2.52414958]
[1755186686173,0.06,118210.0,118200.0,1.81835743]
[1755186686174,0.10818,118210.0,118200.0,1.81835743]
[1755186688279,0.17657315,118210.0,118200.0,1.81835743]
[1755186688473,0.17657315,118210.0,118200.0,2.52414958]
[1755186688680,0.12839315,118210.0,118200.0,2.52414958]
[1755186689270,0.12839315,118210.0,118200.0,1.81835743]
[1755186689577,0.23594867,118210.0,118200.0,1.81835743]
[1755186690077,0.23594867,118210.0,118200.0,2.52414958]
[1755186690479,0.28412867,118210.0,118200.0,1.81835743]
[1755186691780,0.12839315,118210.0,118200.0,1.81835743]
[1755186691977,0.12839315,118210.0,118200.0,2.52414958]
[1755186692174,0.12839315,118210.0,118200.0,1.11256528]
[1755186692486,0.12839315,118210.0,118200.0,1.81835743]
[1755186692980,0.17657315,118210.0,118200.0,2.52414958]
[1755186693578,0.12839315,118210.0,118200.0,1.81835743]
[1755186693779,0.17657315,118210.0,118200.0,1.81835743]
[1755186694378,0.17657315,118210.0,118200.0,0.95843743]
[1755186694576,0.59995315,118210.0,118200.0,0.95843743]
[1755186694776,0.59915315,118210.0,118200.0,0.75378005]
[1755186694976,0.59915315,118210.0,118200.0,1.61246005]
[1755186695281,0.59915315,118210.0,118200.0,2.11359482]
[1755186695486,0.59915315,118210.0,118200.0,1.61246005]
[1755186695872,0.61682785,118210.0,118200.0,1.61246005]
[1755186696185,0.61602785,118210.0,118200.0,1.61246005]
[1755186696384,0.61602785,118210.0,118200.0,0.75378005]
[1755186696584,0.61602785,118210.0,118200.0,0.25264528]
[1755186696788,0.61602785,118210.0,118200.0,1.81604732]
[1755186697483,0.61682785,118210.0,118200.0,0.25264528]
[1755186697678,0.61602785,118210.0,118200.0,1.81600732]
[1755186697882,0.61682785,118210.0,118200.0,0.95744732]
[1755186698193,0.67695003,118210.0,118200.0,1.09210256]
[1755186699590,0.61682785,118210.0,118200.0,1.7969046]
[1755186700085,0.61682785,118210.0,118200.0,1.09210256]
[1755186700287,0.67698533,118210.0,118200.0,1.7969046]
[1755186700681,0.61602785,118210.0,118200.0,1.7969046]
[1755186701685,0.61602785,118210.0,118200.0,1.81436873]
[1755186701686,0.37818785,118210.0,118200.0,1.81436873]
[1755186703788,0.61602785,118210.0,118200.0,1.81436873]
[1755186703987,0.67618533,118210.0,118200.0,1.81436873]
[1755186704181,0.67618533,118210.0,118200.0,1.81400873]
[1755186704387,0.61602785,118210.0,118200.0,0.91016583]
[1755186704587,0.69118057,118210.0,118200.0,1.76820583]
[1755186705590,0.69118057,118210.0,118200.0,1.69962147]
[1755186706290,0.69134088,118210.0,118200.0,1.69962147]
[1755186706492,0.67627901,118210.0,118200.0,1.69958147]
[1755186706677,0.67627901,118210.0,118200.0,1.69946147]
[1755186706884,0.61721771,118210.0,118200.0,0.99465943]
[1755186707079,0.69253074,118210.0,118200.0,0.99465943]
[1755186707280,0.61721771,118210.0,118200.0,0.99465943]
[1755186707480,0.69252386,118210.0,118200.0,0.99465943]
[1755186708392,0.61721771,118210.0,118200.0,0.99465943]
[1755186708992,0.58708952,118220.0,118200.0,0.007]
[1755186709290,2.68927152,118220.0,118190.0,0.37408311]
[1755186709497,1.61006367,118220.0,118190.0,0.37408311]
[1755186709693,2.41486571,118220.0,118190.0,0.37408311]
[1755186709896,2.60467831,118220.0,118190.0,0.37408311]
[1755186710093,2.60667831,118220.0,118200.0,0.006]
[1755186710292,2.71967527,118220.0,118190.0,0.35649311]
[1755186710494,2.01487323,118220.0,118200.0,0.04952]
[1755186710693,0.03266,118200.0,118190.0,1.03336515]
[1755186710901,0.30720877,118200.0,118190.0,1.45809515]
[1755186711200,0.30720877,118200.0,118190.0,1.46009515]
[1755186712198,0.30720877,118200.0,118190.0,1.45609515]
[1755186712793,0.30820877,118200.0,118190.0,1.50361515]
[1755186713400,0.20779,118200.0,118190.0,1.50361515]
[1755186714303,0.16866,118200.0,118190.0,1.50361515]
[1755186714997,0.136,118200.0,118190.0,1.84201515]
[1755186715698,0.136,118200.0,118190.0,2.69929515]
[1755186715999,0.136,118200.0,118190.0,2.69925515]
[1755186716597,0.76190962,118220.0,118210.0,0.4887]
[1755186716902,0.67649085,118220.0,118210.0,2.61221236]
[1755186717102,0.67649085,118220.0,118210.0,2.93076597]
[1755186717694,0.23669085,118220.0,118210.0,2.93156597]
[1755186717899,0.21654755,118230.0,118220.0,0.4877]
[1755186718207,0.80015397,118230.0,118220.0,1.89170204]
[1755186718389,0.75528994,118230.0,118220.0,1.46332]
[1755186718593,0.75528994,118230.0,118220.0,1.70554]
[1755186718893,0.75528994,118230.0,118220.0,2.40734204]
[1755186719093,0.798145,118230.0,118220.0,2.40734204]
[1755186719495,0.802145,118230.0,118220.0,2.36161806]
[1755186720196,0.804145,118230.0,118220.0,0.80077602]
[1755186720390,0.69957887,118230.0,118210.0,0.486584]
[1755186720593,0.69957887,118230.0,118200.0,1.06560204]
[1755186720594,0.31965,118210.0,118200.0,0.41963]
[1755186720810,0.66349,118210.0,118180.0,0.04993]
[1755186720996,2.34951583,118210.0,118190.0,0.04993]
[1755186721303,2.44951583,118210.0,118190.0,0.04993]
[1755186721501,1.72392687,118210.0,118190.0,0.04993]
[1755186721702,1.72392687,118210.0,118200.0,0.04993]
[1755186722104,1.72392687,118210.0,118190.0,0.17315]
[1755186722105,1.89312687,118210.0,118190.0,0.04993]
[1755186722299,1.73233487,118210.0,118190.0,0.3608]
[1755186722493,0.1,118200.0,118190.0,0.35181]
[1755186722694,0.07635,118180.0,118170.0,0.58037204]
[1755186722897,0.07635,118180.0,118160.0,0.30201569]
[1755186722898,0.2564161,118180.0,118160.0,0.30201569]
[1755186723108,0.09080728,118170.0,118160.0,0.70480204]
[1755186723404,0.19543882,118170.0,118160.0,0.70480204]
[1755186723994,0.2620215,118170.0,118160.0,0.87795204]
[1755186724201,0.2620215,118170.0,118160.0,0.91687891]
[1755186724407,0.2620215,118170.0,118160.0,1.08032891]
[1755186724800,0.2630215,118170.0,118160.0,1.13125891]
[1755186725003,0.37058068,118170.0,118160.0,1.13125891]
[1755186725212,0.37058068,118170.0,118160.0,1.49205891]
[1755186725503,0.37158068,118170.0,118160.0,1.49805891]
[1755186726199,0.43167139,118170.0,118160.0,1.49805891]
[1755186727008,1.11441288,118170.0,118160.0,1.49805891]
[1755186727203,0.21180953,118170.0,118160.0,1.49805891]
[1755186727707,0.21180953,118170.0,118160.0,2.38460204]
[1755186728706,0.18736027,118170.0,118160.0,1.56130204]
[1755186729009,0.21799027,118170.0,118160.0,1.56130204]
[1755186729707,0.32590127,118170.0,118160.0,1.56130204]
[1755186730495,0.15171882,118170.0,118160.0,1.56130204]
[1755186731202,0.49989071,118180.0,118170.0,0.33907]
[1755186731403,0.5598,118180.0,118170.0,2.74898204]
[1755186731610,0.69617114,118180.0,118170.0,1.19350204]
[1755186731905,2.21416816,118180.0,118160.0,1.07260204]
[1755186732105,0.39558,118170.0,118160.0,0.71180204]
[1755186732406,0.39558,118170.0,118150.0,0.68880204]
[1755186732407,0.83538,118160.0,118150.0,0.68880204]
[1755186732710,0.53618,118150.0,118140.0,0.84746395]
[1755186732913,1.02698,118150.0,118140.0,0.73661955]
[1755186733099,1.02698,118150.0,118140.0,0.78353955]
[1755186733304,1.02698,118150.0,118140.0,0.81663955]
[1755186733804,1.10201114,118150.0,118140.0,0.81663955]
[1755186734011,1.10301114,118150.0,118140.0,0.4887]
[1755186734211,1.14452449,118150.0,118140.0,1.19350204]
[1755186734404,1.14452449,118150.0,118140.0,1.14774673]
[1755186735103,1.14452449,118150.0,118130.0,0.69233341]
[1755186735412,0.48306,118130.0,118120.0,1.06727611]
[1755186735709,0.95386,118130.0,118120.0,1.16412611]
[1755186735912,0.882,118130.0,118120.0,1.16412611]
[1755186736209,1.72784024,118130.0,118120.0,1.16412611]
[1755186737206,1.72784024,118130.0,118120.0,0.90135204]
[1755186737207,1.73084024,118130.0,118120.0,0.90135204]
[1755186737514,1.73084024,118130.0,118120.0,1.17849204]
[1755186737515,1.86260322,118130.0,118120.0,1.17849204]
[1755186738711,1.80270024,118130.0,118120.0,1.17849204]
[1755186739010,1.87761676,118130.0,118120.0,1.17849204]
[1755186739213,1.8625214,118130.0,118120.0,1.17849204]
[1755186739514,1.80270024,118130.0,118120.0,1.17849204]
[1755186740011,1.86252891,118130.0,118120.0,0.85443204]
[1755186740310,1.86252891,118130.0,118120.0,1.02758204]
[1755186740516,1.86252891,118130.0,118120.0,1.13157204]
[1755186740809,1.86252891,118130.0,118120.0,1.17849204]
[1755186742502,1.86252891,118130.0,118120.0,0.47369]
[1755186743111,1.86252891,118130.0,118120.0,1.17849204]
[1755186743318,1.88145129,118130.0,118120.0,1.17849204]
[1755186743705,1.88145129,118130.0,118120.0,0.42376]
[1755186743901,1.88145129,118130.0,118120.0,1.17515204]
[1755186744698,1.82162262,118130.0,118120.0,1.32611]
[1755186744900,1.82162262,118130.0,118110.0,0.44734]
[1755186744901,0.47359,118120.0,118110.0,0.44734]
[1755186745197,0.66234105,118120.0,118110.0,0.61359407]
[1755186745398,1.02314105,118120.0,118110.0,0.61359407]
[1755186746010,1.02414105,118120.0,118110.0,0.61359407]
[1755186746314,0.66334105,118120.0,118110.0,0.66018407]
[1755186746704,0.42988105,118120.0,118110.0,1.36498611]
[1755186747201,0.66534105,118120.0,118110.0,1.36498611]
[1755186748109,0.60551238,118120.0,118110.0,1.36498611]
[1755186748314,0.66534105,118120.0,118110.0,1.36498611]
[1755186748811,0.13192238,118120.0,118110.0,1.72578611]
[1755186749111,0.60551238,118120.0,118110.0,1.72578611]
[1755186749306,0.60551238,118120.0,118110.0,1.36498611]
[1755186749506,0.60551238,118120.0,118110.0,0.21284407]
[1755186749714,0.60551238,118120.0,118100.0,1.25627]
[1755186749715,0.47359,118110.0,118100.0,1.25627]
[1755186749903,1.02312892,118110.0,118100.0,1.43095757]
[1755186750108,0.66232892,118110.0,118100.0,1.43095757]
[1755186750313,0.66232892,118110.0,118100.0,2.13575961]
[1755186750501,0.52817238,118110.0,118100.0,2.44996961]
[1755186750708,0.60251238,118110.0,118100.0,2.49655961]
[1755186751106,0.96331238,118110.0,118100.0,2.13575961]
[1755186751315,0.47359,118090.0,118080.0,0.25662]
[1755186751508,0.60251238,118090.0,118080.0,1.27319757]
[1755186752908,0.60251238,118090.0,118080.0,1.97799961]
[1755186753108,0.52817238,118090.0,118080.0,2.33879961]
[1755186753309,0.52817238,118090.0,118080.0,2.42586961]
[1755186753516,0.52917238,118090.0,118080.0,2.42586961]
[1755186753913,0.53117238,118090.0,118080.0,2.42586961]
[1755186754617,0.17727238,118090.0,118080.0,2.42586961]
[1755186755711,0.13192238,118090.0,118080.0,2.42586961]
[1755186756219,0.17727238,118090.0,118080.0,2.42586961]
[1755186757406,0.13192238,118090.0,118080.0,3.13147165]
[1755186757612,0.13192238,118090.0,118080.0,2.42666961]
[1755186758328,0.13192238,118090.0,118080.0,2.42586961]
[1755186760417,0.19172645,118090.0,118080.0,2.42586961]
[1755186760613,0.13192238,118090.0,118080.0,2.42586961]
[1755186760814,0.19172645,118090.0,118080.0,2.42586961]
[1755186761016,0.13192238,118090.0,118080.0,2.42586961]
[1755186761220,0.19172645,118090.0,118080.0,2.42586961]
[1755186762812,0.13192238,118090.0,118080.0,2.42586961]
[1755186763520,0.95021,118120.0,118080.0,3.13067165]
[1755186763818,0.07491652,118100.0,118090.0,0.50317]
[1755186764023,0.19491652,118100.0,118090.0,1.24355755]
[1755186764222,0.19491652,118100.0,118090.0,1.48606757]
[1755186765027,0.25696406,118100.0,118090.0,1.48606757]
[1755186765216,0.18204754,118100.0,118090.0,1.48606757]
[1755186765417,0.18204754,118100.0,118090.0,2.19086961]
[1755186766220,0.22739754,118100.0,118090.0,2.19086961]
[1755186766423,0.22839754,118100.0,118090.0,2.19086961]
[1755186767218,0.16835,118100.0,118090.0,2.19086961]
[1755186767718,0.16835,118100.0,118090.0,1.83006961]
[1755186767923,0.16835,118100.0,118090.0,2.19086961]
[1755186768119,0.16915,118100.0,118090.0,1.32084961]
[1755186768324,0.95819,118100.0,118090.0,0.17682757]
[1755186768618,1.03310652,118100.0,118090.0,0.98257757]
[1755186768818,1.03230652,118100.0,118090.0,1.08536757]
[1755186769021,0.59716652,118100.0,118090.0,1.80538961]
[1755186769221,0.24326652,118100.0,118090.0,2.16618961]
[1755186769428,0.123,118100.0,118090.0,2.16618961]
[1755186770223,0.16835,118100.0,118090.0,2.16618961]
[1755186770424,0.123,118100.0,118090.0,2.16618961]
[1755186771129,0.16835,118100.0,118090.0,2.16618961]
[1755186771428,0.24326652,118100.0,118090.0,2.18358169]
[1755186771820,0.19791652,118100.0,118090.0,2.18358169]
[1755186772016,0.25800819,118100.0,118090.0,2.18358169]
[1755186772218,0.22844167,118100.0,118090.0,2.16618961]
[1755186772728,0.22844167,118100.0,118090.0,1.9876023]
[1755186772932,0.22844167,118100.0,118090.0,1.1333623]
[1755186773225,0.65668167,118100.0,118090.0,1.9875223]
[1755186773418,0.65668167,118100.0,118090.0,1.6115023]
[1755186773617,1.01748167,118100.0,118090.0,1.6114623]
[1755186773817,1.01748167,118100.0,118080.0,0.41486]
[1755186773818,0.47359,118090.0,118080.0,0.41486]
[1755186774025,0.59359,118090.0,118080.0,1.8991723]
[1755186774626,0.59359,118090.0,118080.0,2.1033412]
[1755186774827,0.59359,118090.0,118080.0,1.39699757]
[1755186775030,0.95639,118090.0,118080.0,1.03619757]
[1755186775228,1.03145899,118090.0,118080.0,0.98209757]
[1755186775431,1.03225899,118090.0,118060.0,1.1381686]
[1755186775734,0.55432899,118080.0,118070.0,0.90806]
[1755186775933,1.05423851,118080.0,118070.0,0.90806]
[1755186776233,1.05417004,118080.0,118070.0,1.03622757]
[1755186776529,1.05417004,118080.0,118070.0,1.6884012]
[1755186776730,0.97910105,118080.0,118070.0,1.6884012]
[1755186777036,0.97910105,118080.0,118070.0,0.98205757]
[1755186777425,0.98210105,118080.0,118070.0,0.98205757]
[1755186777624,1.02488324,118080.0,118070.0,0.98205757]
[1755186777927,0.80161737,118080.0,118070.0,0.85392]
[1755186778120,0.96795737,118080.0,118070.0,0.85392]
[1755186778523,1.08575737,118080.0,118070.0,0.85392]
[1755186778720,0.1178,118070.0,118060.0,0.90793]
[1755186778924,0.67531332,118070.0,118060.0,1.10601757]
[1755186779731,0.67531332,118070.0,118060.0,1.8123612]
[1755186779931,0.39046332,118070.0,118060.0,1.8275812]
[1755186780233,0.55680332,118070.0,118060.0,1.8275812]
[1755186780435,0.55880332,118070.0,118060.0,1.8275812]
[1755186780933,0.66698178,118070.0,118060.0,1.8275812]
[1755186781930,0.50064178,118070.0,118060.0,1.8275812]
[1755186782233,0.30723178,118070.0,118060.0,1.8275812]
[1755186783543,0.30723178,118070.0,118060.0,2.1891812]
[1755186783934,0.97809182,118070.0,118060.0,2.1891812]
[1755186784135,0.13210952,118070.0,118060.0,2.1891812]
[1755186784747,0.03,118070.0,118060.0,2.1891812]
[1755186784943,0.13966398,118070.0,118060.0,2.1891812]
[1755186785137,0.03,118070.0,118060.0,2.1891812]
[1755186785435,0.79997976,118090.0,118070.0,0.05406]
[1755186785640,0.92504309,118090.0,118080.0,2.85448483]
[1755186785849,0.17996788,118110.0,118080.0,3.26314115]
[1755186786039,0.10492031,118110.0,118100.0,1.5560412]
[1755186786238,0.10492031,118110.0,118100.0,2.29487557]
[1755186786239,0.03,118110.0,118100.0,2.29487557]
[1755186786745,0.08,118110.0,118100.0,2.535122]
[1755186787048,0.08,118110.0,118100.0,2.533122]
[1755186787346,0.08,118110.0,118100.0,2.333122]
[1755186787544,0.081,118110.0,118100.0,2.333122]
[1755186787842,0.083,118110.0,118100.0,2.164778]
[1755186788033,0.13063,118110.0,118100.0,2.164778]
[1755186788441,0.13063,118110.0,118100.0,2.166778]
[1755186788651,0.083,118110.0,118100.0,2.166778]
[1755186789551,0.083,118110.0,118100.0,2.167778]
[1755186789740,0.083,118110.0,118100.0,1.314538]
[1755186790051,0.19181283,118110.0,118100.0,0.60819437]
[1755186790353,0.29697,118110.0,118100.0,1.46103437]
[1755186790942,0.13063,118110.0,118100.0,2.167378]
[1755186791139,0.083,118110.0,118100.0,2.167378]
[1755186792453,0.13063,118110.0,118100.0,2.167378]